bitfinex-derivatives/quotes_SOLF0:USTF0_20241107
["timestamp","ask_amount","ask_price","bid_price","bid_amount"]
[1731005997382,2.5354,197.04,196.92,2.5368]
[1731005997583,2.5354,197.04,196.83,39.05952397]
[1731005998285,15.21,197.16,196.83,36.56]
[1731005998880,2.5354,197.04,196.94,2.5366]
[1731005999576,2.5355,197.03,196.95,2.5364]
[1731005999977,15.21,197.16,196.83,39.12702234]
[1731006000185,2.5358,197.01,196.93,2.5366]
[1731006000381,15.21,197.16,196.83,36.56]
[1731006000885,1.0,197.15,196.94,2.5365]
[1731006001182,1.0,197.15,196.83,36.56]
[1731006001385,2.5356,197.02,196.83,36.56]
[1731006001581,1.0,197.15,196.83,36.56]
[1731006002482,2.5351,197.06,196.95,2.5364]
[1731006002678,1.0,197.15,196.83,36.56]
[1731006003079,2.5355,197.03,196.96,2.5363]
[1731006003582,1.0,197.15,196.83,36.56]
[1731006004085,2.5356,197.03,196.95,2.5364]
[1731006004287,2.53555625,197.07,196.83,36.56]
[1731006004477,1.0,197.15,196.83,36.56]
[1731006005777,15.21,197.06,196.68,25.62171458]
[1731006006086,17.70749626,197.06,196.68,25.62171458]
[1731006006386,2.5367,196.94,196.68,25.62171458]
[1731006006980,2.49749626,197.06,196.68,25.62171458]
[1731006007186,15.21,197.13,196.87,2.5374]
[1731006007393,15.21,197.13,196.82,2.52870545]
[1731006007684,15.21,197.13,196.68,25.62171458]
[1731006007880,0.19213,197.04,196.68,25.62171458]
[1731006008087,0.19213,197.04,196.68,5.0798]
[1731006008388,0.19213,197.04,196.65,5.30332855]
[1731006008585,2.74228922,197.04,196.65,5.30332855]
[1731006008887,2.74228922,197.04,196.81,2.5383]
[1731006008888,15.21,197.03,196.81,2.5383]
[1731006009090,0.19213,197.04,196.77,2.54990542]
[1731006009289,0.19213,197.04,196.65,20.54332855]
[1731006009691,2.5369,196.92,196.76,2.5388]
[1731006009889,2.73848225,197.04,196.76,2.49533892]
[1731006010090,15.40213,197.04,196.65,5.30332855]
[1731006010285,2.5373,196.89,196.65,5.30332855]
[1731006011089,2.60121461,196.96,196.64,2.47871434]
[1731006011284,0.19213,197.04,196.61,1.0]
[1731006011582,2.5367,196.94,196.64,15.24]
[1731006011788,2.48670531,197.03,196.64,15.24]
[1731006011987,2.48670531,197.03,196.66,15.24]
[1731006012187,2.5365,196.96,196.66,15.24]
[1731006012385,0.19213,197.04,196.66,15.24]
[1731006012694,0.19213,197.04,196.68,15.24]
[1731006012882,0.19213,197.04,196.68,30.45]
[1731006013082,0.19213,197.04,196.68,38.07]
[1731006013393,0.19213,197.04,196.72,15.24]
[1731006013593,0.19213,197.04,196.96,2.5362]
[1731006013793,0.19213,197.04,196.75,30.45]
[1731006014190,0.19213,197.04,196.83,15.24]
[1731006014595,0.19213,197.04,196.77,15.24]
[1731006015191,0.19213,197.04,196.91,2.5369]
[1731006015389,0.19213,197.04,196.75,2.51512435]
[1731006015694,0.19213,197.04,196.77,2.5388]
[1731006015896,0.19213,197.04,196.77,2.52501843]
[1731006016094,0.19213,197.04,196.72,36.54]
[1731006016293,0.19213,197.04,196.66,15.24]
[1731006016593,2.5368,196.93,196.67,15.24]
[1731006016987,0.19213,197.04,196.79,2.5384]
[1731006017192,0.19213,197.04,196.66,36.56]
[1731006017397,1.0,197.03,196.65,2.55013415]
[1731006017600,1.0,197.03,196.61,5.30548462]
[1731006017801,1.0,197.03,196.59,36.56]
[1731006018999,1.0,197.03,196.59,51.8]
[1731006019502,1.0,197.03,196.59,36.56]
[1731006019700,1.0,197.03,196.59,51.8]
[1731006019891,1.0,197.03,196.59,36.56]
[1731006020890,2.5381,196.83,196.59,36.56]
[1731006021090,2.56581273,196.88,196.59,36.56]
[1731006021290,1.0,197.03,196.64,2.5404]
[1731006021496,36.56,196.98,196.55,2.52797188]
[1731006021695,1.0,196.87,196.48,5.30845208]
[1731006021903,2.5381,196.83,196.48,7.84632861]
[1731006022112,1.0,196.87,196.48,7.84632861]
[1731006022402,2.5376,196.87,196.49,1.0]
[1731006022602,39.04682948,196.98,196.49,1.0]
[1731006023196,39.04682948,196.98,196.73,2.5392]
[1731006023401,1.0,196.97,196.49,1.0]
[1731006023603,16.21,196.97,196.53,45.10329773]
[1731006024403,1.0,196.97,196.53,45.10329773]
[1731006024603,2.5389,196.77,196.53,45.10329773]
[1731006024798,1.0,196.97,196.63,2.5405]
[1731006025209,1.0,196.97,196.53,45.10329773]
[1731006025509,1.0,196.97,196.45,36.56]
[1731006025510,16.21,196.97,196.45,36.56]
[1731006025909,16.21,196.97,196.53,2.5418]
[1731006026108,16.21,196.97,196.46,2.58778532]
[1731006026301,1.0,196.97,196.46,2.58778532]
[1731006026503,1.0,196.97,196.45,36.56]
[1731006026702,1.0,196.97,196.45,39.05736903]
[1731006027308,2.5397,196.71,196.45,39.05736903]
[1731006027506,20.2829,196.96,196.57,2.5413]
[1731006027702,20.2829,196.96,196.45,39.05736903]
[1731006028103,1.0,196.95,196.62,2.5407]
[1731006028303,1.0,196.95,196.45,39.05736903]
[1731006028506,2.5399,196.69,196.45,39.05736903]
[1731006028805,1.0,196.95,196.45,36.56]
[1731006029013,1.0,196.95,196.45,39.09168025]
[1731006029402,16.21,196.95,196.45,39.09168025]
[1731006029611,15.21,196.93,196.45,39.09168025]
[1731006030008,15.21,196.93,196.62,2.5404]
[1731006030213,1.0,196.92,196.45,39.09168025]
[1731006030411,1.0,196.92,196.45,54.33168025]
[1731006030805,16.21,196.92,196.45,54.33168025]
[1731006031306,1.0,196.92,196.47,30.45]
[1731006031502,36.56,196.98,196.47,30.45]
[1731006031711,36.56,196.98,196.49,30.45]
[1731006031912,36.58,197.12,196.49,30.45]
[1731006032115,2.5367,196.92,196.8,2.5381]
[1731006032312,2.58949175,197.04,196.66,36.58]
[1731006032513,2.5363,196.95,196.83,2.5378]
[1731006032708,17.74790521,197.01,196.66,39.09655906]
[1731006032907,15.21,197.01,196.66,39.09655906]
[1731006033109,17.79466346,197.01,196.66,36.58]
[1731006033609,1.0,197.0,196.66,36.58]
[1731006034013,2.5367,196.92,196.81,2.538]
[1731006034207,1.0,197.0,196.66,39.17743047]
[1731006034407,1.0,197.0,196.66,54.41743047]
[1731006034609,0.21696,197.05,196.66,54.41743047]
[1731006035115,0.21696,197.05,196.67,1.0]
[1731006037808,0.21696,197.05,196.72,45.06078343]
[1731006038213,2.536,196.98,196.84,2.5376]
[1731006038518,0.21696,197.05,196.84,2.5376]
[1731006039017,0.21696,197.05,196.72,45.06078343]
[1731006039513,0.21696,197.05,196.8,2.5382]
[1731006039710,0.21696,197.05,196.72,45.06078343]
[1731006040107,0.21696,197.05,196.72,60.30078343]
[1731006040508,0.21696,197.05,196.73,1.0]
[1731006041118,2.75196,197.05,196.94,2.5363]
[1731006041315,0.21696,197.05,196.8,2.54928796]
[1731006041516,0.21696,197.05,196.73,1.0]
[1731006042217,2.537,196.89,196.76,2.5387]
[1731006042517,1.0,197.04,196.72,45.06078343]
[1731006042708,18.76995019,197.04,196.72,45.06078343]
[1731006042916,2.5372,196.88,196.76,2.5387]
[1731006043217,2.5372,196.88,196.72,45.06078343]
[1731006043218,15.21,197.0,196.72,45.06078343]
[1731006043412,17.74152104,197.0,196.68,2.5396]
[1731006043718,17.07151209,196.82,196.54,36.56]
[1731006044015,17.07151209,196.82,196.57,17.07151209]
[1731006044513,2.5388,196.76,196.57,17.07151209]
[1731006044714,17.07151209,196.82,196.57,17.07151209]
[1731006045218,17.07151209,196.82,196.65,2.5401]
[1731006045418,17.07151209,196.82,196.57,17.07151209]
[1731006045816,17.07151209,196.82,196.62,2.5405]
[1731006046019,17.07151209,196.82,196.57,17.07151209]
[1731006046522,17.07151209,196.78,196.52,17.07151209]
[1731006046820,2.5401,196.66,196.48,53.63151209]
[1731006047021,17.07151209,196.73,196.48,36.56]
[1731006047223,2.5401,196.66,196.55,2.5414]
[1731006047422,1.0,196.81,196.51,17.07151209]
[1731006047625,17.07151209,196.78,196.51,17.07151209]
[1731006048220,17.07151209,196.82,196.56,17.07151209]
[1731006048419,2.5388,196.76,196.64,2.5402]
[1731006048619,17.07151209,196.82,196.6,17.07151209]
[1731006049131,17.07151209,196.84,196.6,17.07151209]
[1731006049427,17.07151209,196.87,196.6,17.07151209]
[1731006049826,17.07151209,196.87,196.65,17.07151209]
[1731006050419,17.07151209,196.87,196.6,17.07151209]
[1731006050626,17.07151209,196.83,196.6,17.07151209]
[1731006050821,17.07151209,196.78,196.55,17.07151209]
[1731006052519,15.21,196.94,196.6,17.07151209]
[1731006052724,2.5383,196.79,196.67,2.5398]
[1731006052924,17.07151209,196.84,196.6,17.07151209]
[1731006053630,17.07151209,196.84,196.48,36.56]
[1731006053631,17.07151209,196.8,196.48,36.56]
[1731006053823,17.07151209,196.8,196.54,17.07151209]
[1731006054223,2.5393,196.72,196.54,17.07151209]
[1731006054428,32.28151209,196.8,196.54,17.07151209]
[1731006054824,2.5397,196.69,196.59,2.5409]
[1731006055021,17.0792983,196.73,196.49,17.0792983]
[1731006055729,17.0792983,196.73,196.48,36.56]
[1731006055730,32.2892983,196.69,196.4,45.12736301]
[1731006055937,32.2892983,196.69,196.42,17.0792983]
[1731006056120,2.541,196.59,196.49,2.5422]
[1731006056425,2.541,196.59,196.42,17.0792983]
[1731006056629,32.2892983,196.69,196.42,17.0792983]
[1731006056927,17.0792983,196.64,196.42,17.0792983]
[1731006057126,17.0792983,196.64,196.4,45.12736301]
[1731006057330,2.5424,196.48,196.36,2.5438]
[1731006057524,17.0792983,196.5,196.28,17.0792983]
[1731006057720,32.2892983,196.5,196.23,17.0792983]
[1731006057925,2.543,196.43,196.31,2.5444]
[1731006058220,17.0792983,196.5,196.23,17.0792983]
[1731006058425,2.5428,196.45,196.33,2.5442]
[1731006058832,2.5428,196.45,196.23,17.0792983]
[1731006059130,2.5429,196.44,196.23,17.0792983]
[1731006059526,17.0792983,196.46,196.19,17.0792983]
[1731006059731,2.5434,196.4,196.12,15.24]
[1731006060030,17.0792983,196.46,196.18,17.0792983]
[1731006060229,17.0792983,196.41,196.18,17.0792983]
[1731006060532,17.0792983,196.41,196.08,36.6]
[1731006060533,17.0792983,196.37,196.14,17.0792983]
[1731006060721,2.5442,196.34,196.19,2.546]
[1731006060927,17.0792983,196.37,196.14,17.0792983]
[1731006061128,17.0792983,196.37,196.02,5.31994853]
[1731006061336,17.0792983,196.32,196.1,17.0792983]
[1731006062133,17.0792983,196.32,196.06,17.0792983]
[1731006062344,2.5451,196.27,196.12,2.5469]
[1731006062633,17.0792983,196.37,196.15,17.0792983]
[1731006062938,17.0792983,196.41,196.2,17.0792983]
[1731006063233,17.09909765,196.43,196.19,17.09909765]
[1731006063436,2.5433,196.41,196.28,2.5448]
[1731006063634,17.09909765,196.43,196.19,17.09909765]
[1731006064031,17.09909765,196.47,196.23,17.09909765]
[1731006064737,2.543,196.43,196.23,17.09909765]
[1731006064939,17.09909765,196.42,196.18,17.09909765]
[1731006065332,2.5437,196.38,196.18,17.09909765]
[1731006065532,17.09909765,196.42,196.18,17.09909765]
[1731006066436,17.09909765,196.38,196.14,17.09909765]
[1731006066833,2.5439,196.36,196.14,17.09909765]
[1731006067039,17.09909765,196.38,196.14,17.09909765]
[1731006067334,2.5438,196.37,196.21,2.5458]
[1731006067640,17.09909765,196.38,196.14,17.09909765]
[1731006067835,2.5442,196.34,196.2,2.5458]
[1731006068033,17.09909765,196.38,196.13,17.09909765]
[1731006068228,17.09909765,196.38,196.17,17.09909765]
[1731006068438,17.09909765,196.42,196.17,17.09909765]
[1731006069133,17.09909765,196.42,196.22,17.09909765]
[1731006069336,36.66,196.81,196.35,17.09909765]
[1731006069535,17.09909765,196.59,196.43,2.5429]
[1731006069740,17.09909765,196.59,196.26,15.24]
[1731006069941,17.09909765,196.59,196.41,2.5431]
[1731006070435,17.09909765,196.59,196.35,17.09909765]
[1731006070740,17.09909765,196.59,196.32,17.09909765]
[1731006071144,17.09909765,196.59,196.25,17.09909765]
[1731006071344,17.09909765,196.59,196.22,2.51175688]
[1731006071345,15.87223141,196.58,196.43,15.87223141]
[1731006071545,15.21,196.71,196.46,15.87223141]
[1731006071842,15.87223141,196.64,196.46,15.87223141]
[1731006072040,15.87223141,196.64,196.51,2.5419]
[1731006072248,15.87223141,196.64,196.46,15.87223141]
[1731006072732,18.41253141,196.64,196.51,2.5419]
[1731006072931,15.87223141,196.64,196.51,2.5419]
[1731006073335,15.87223141,196.64,196.4,15.87223141]
[1731006073336,15.87223141,196.64,196.53,2.5416]
[1731006073736,15.87223141,196.69,196.49,15.87223141]
[1731006073932,2.5402,196.65,196.53,2.5416]
[1731006074142,15.87223141,196.66,196.49,15.87223141]
[1731006074747,15.87223141,196.63,196.49,15.87223141]
[1731006074943,15.87223141,196.66,196.52,15.87223141]
[1731006075136,15.87223141,196.66,196.55,2.5414]
[1731006075338,15.87223141,196.66,196.52,15.87223141]
[1731006075339,15.87223141,196.69,196.52,15.87223141]
[1731006075544,15.87223141,196.69,196.5,15.87223141]
[1731006075744,15.87223141,196.69,196.56,2.5412]
[1731006076045,15.87223141,196.69,196.5,15.87223141]
[1731006076239,15.87223141,196.66,196.48,15.87223141]
[1731006076444,15.87223141,196.63,196.48,15.87223141]
[1731006076851,2.5407,196.61,196.46,31.73367536]
[1731006077050,31.73367536,196.59,196.38,36.64]
[1731006077247,31.73367536,196.59,196.42,31.73367536]
[1731006077445,2.5411,196.58,196.45,2.5426]
[1731006077947,31.73367536,196.56,196.42,31.73367536]
[1731006078141,31.73367536,196.59,196.42,31.73367536]
[1731006078347,31.73367536,196.59,196.4,31.73367536]
[1731006078549,34.27517536,196.55,196.42,2.5431]
[1731006078854,0.28708,196.69,196.42,31.73367536]
[1731006079044,31.73367536,196.62,196.46,31.73367536]
[1731006079556,31.73367536,196.65,196.49,31.73367536]
[1731006079742,31.73367536,196.65,196.52,31.73367536]
[1731006079941,0.28708,196.69,196.55,31.73367536]
[1731006080350,0.28708,196.69,196.61,2.5406]
[1731006080549,0.28708,196.69,196.5,31.73367536]
[1731006080550,0.28708,196.69,196.56,31.73367536]
[1731006080849,2.82678,196.69,196.58,2.541]
[1731006081348,2.5398,196.68,196.57,2.5411]
[1731006081745,31.73367536,196.68,196.43,36.64]
[1731006081945,31.73367536,196.65,196.49,31.73367536]
[1731006082154,31.73367536,196.62,196.46,31.73367536]
[1731006082347,0.28708,196.69,196.52,31.73367536]
[1731006082548,2.5402,196.65,196.54,2.5415]
[1731006082748,0.28708,196.69,196.49,31.73367536]
[1731006083051,31.73367536,196.64,196.43,36.64]
[1731006083248,31.73367536,196.6,196.43,31.73367536]
[1731006083450,31.73367536,196.67,196.47,31.73367536]
[1731006083750,2.5404,196.64,196.54,2.5415]
[1731006084052,31.73367536,196.61,196.43,31.73367536]
[1731006084252,31.73367536,196.61,196.46,31.73367536]
[1731006084454,0.28708,196.69,196.49,31.73367536]
[1731006084649,0.28708,196.69,196.53,31.73367536]
[1731006084650,31.73367536,196.68,196.53,31.73367536]
[1731006085052,31.73367536,196.68,196.5,31.73367536]
[1731006085355,31.73367536,196.65,196.47,31.73367536]
[1731006085547,0.28708,196.69,196.34,47.68465803]
[1731006085548,31.73367536,196.61,196.44,31.73367536]
[1731006085753,31.73367536,196.58,196.42,31.73367536]
[1731006087849,2.5412,196.57,196.47,2.5424]
[1731006088652,31.73367536,196.55,196.42,2.543]
[1731006088853,31.73367536,196.52,196.36,31.73367536]
[1731006089555,34.27557536,196.52,196.42,2.5431]
[1731006089853,31.73367536,196.55,196.39,31.73367536]
[1731006090651,31.73367536,196.55,196.46,2.5425]
[1731006090855,31.73367536,196.58,196.42,31.73367536]
[1731006091052,31.73367536,196.58,196.5,2.542]
[1731006091358,31.73367536,196.61,196.46,31.73367536]
[1731006091554,0.28708,196.69,196.49,31.73367536]
[1731006091759,31.73367536,196.67,196.49,31.73367536]
[1731006091959,31.73367536,196.67,196.52,31.73367536]
[1731006092459,0.28708,196.69,196.55,31.73367536]
[1731006092955,0.28708,196.69,196.58,31.73367536]
[1731006093357,0.28708,196.69,196.68,2.5397]
[1731006093755,0.28708,196.69,196.68,34.27337536]
[1731006093956,0.28708,196.69,196.5,68.35367536]
[1731006094156,0.28708,196.69,196.62,31.73367536]
[1731006094361,0.28708,196.69,196.5,68.35367536]
[1731006094362,0.28708,196.69,196.65,31.73367536]
[1731006094557,0.28708,196.69,196.62,31.73367536]
[1731006094762,0.28708,196.69,196.65,31.73367536]
[1731006095063,0.28708,196.69,196.67,2.5398]
[1731006095264,0.28708,196.69,196.68,31.73367536]
[1731006095462,31.73367536,196.84,196.68,31.73367536]
[1731006095667,31.73367536,196.84,196.76,2.5386]
[1731006096565,31.73367536,196.84,196.73,2.539]
[1731006096869,31.73367536,196.78,196.62,31.73367536]
[1731006097069,2.5384,196.79,196.68,2.5397]
[1731006097268,31.73367536,196.75,196.62,31.73367536]
[1731006097474,31.73367536,196.75,196.58,31.73367536]
[1731006097672,31.73367536,196.75,196.66,2.54]
[1731006097868,31.73367536,196.71,196.55,31.73367536]
[1731006098062,31.73367536,196.71,196.59,31.73367536]
[1731006099072,31.73367536,196.71,196.64,2.5402]
[1731006099275,31.73367536,196.71,196.5,83.59367536]
[1731006099276,31.73367536,196.71,196.55,31.73367536]
[1731006099463,46.94367536,196.89,196.63,2.5403]
[1731006099668,15.21,196.92,196.62,31.73367536]
[1731006099869,31.73367536,196.77,196.62,31.73367536]
[1731006100068,31.73367536,196.8,196.62,31.73367536]
[1731006100270,31.73367536,196.8,196.66,31.73367536]
[1731006100966,31.73367536,196.77,196.62,31.73367536]
[1731006101572,31.73367536,196.77,196.59,31.73367536]
[1731006101764,31.73367536,196.74,196.59,31.73367536]
[1731006101971,31.73367536,196.71,196.5,36.62]
[1731006102171,31.73367536,196.67,196.52,31.73367536]
[1731006102674,31.73367536,196.64,196.5,36.62]
[1731006102877,31.73367536,196.67,196.53,31.73367536]
[1731006103078,34.27357536,196.67,196.56,2.5413]
[1731006103273,34.27357536,196.67,196.5,36.62]
[1731006103581,2.5404,196.63,196.52,2.5417]
[1731006103779,31.73367536,196.64,196.46,31.73367536]
[1731006104366,31.73367536,196.61,196.46,31.73367536]
[1731006104773,31.73367536,196.61,196.51,2.5419]
[1731006105280,31.73367536,196.75,196.6,31.73367536]
[1731006105877,34.27247536,196.75,196.6,31.73367536]
[1731006106178,31.73367536,196.75,196.6,31.73367536]
[1731006106575,31.73367536,196.78,196.63,31.73367536]
[1731006106976,31.73367536,196.83,196.66,31.73367536]
[1731006107181,2.538,196.82,196.71,2.5392]
[1731006107484,31.73367536,196.83,196.69,31.73367536]
[1731006107979,2.5375,196.86,196.74,2.539]
[1731006108572,34.27077536,196.89,196.73,31.73367536]
[1731006109174,34.27117536,196.86,196.75,2.5388]
[1731006109770,34.27117536,196.86,196.73,2.539]
[1731006109974,31.73367536,196.86,196.7,31.73367536]
[1731006110171,2.5376,196.85,196.7,31.73367536]
[1731006110487,31.73367536,196.86,196.7,31.73367536]
[1731006110679,2.5377,196.85,196.7,31.73367536]
[1731006110874,31.73367536,196.86,196.7,31.73367536]
[1731006111383,31.73367536,196.83,196.72,2.5392]
[1731006112373,31.73367536,196.83,196.66,31.73367536]
[1731006112578,2.5381,196.81,196.71,2.5393]
[1731006112775,31.73367536,196.8,196.63,31.73367536]
[1731006112980,2.5384,196.79,196.68,2.5397]
[1731006113281,31.73367536,196.8,196.63,31.73367536]
[1731006113591,31.73367536,196.76,196.6,31.73367536]
[1731006113777,31.73367536,196.73,196.57,45.0933138]
[1731006113977,31.73367536,196.7,196.57,45.0933138]
[1731006114384,31.73367536,196.7,196.53,31.73367536]
[1731006114586,2.5403,196.64,196.54,2.5415]
[1731006115079,31.73367536,196.67,196.53,31.73367536]
[1731006115480,31.73367536,196.7,196.53,31.73367536]
[1731006115879,31.73367536,196.7,196.58,2.5409]
[1731006116074,31.73367536,196.66,196.5,68.31367536]
[1731006116275,2.5403,196.64,196.54,2.5415]
[1731006116482,31.73367536,196.66,196.5,68.31367536]
[1731006117084,34.27377536,196.66,196.5,68.31367536]
[1731006117380,31.73367536,196.69,196.53,31.73367536]
[1731006117779,2.5399,196.68,196.58,2.5409]
[1731006117981,31.73367536,196.69,196.53,31.73367536]
[1731006118182,31.73367536,196.69,196.56,31.73367536]
[1731006118579,31.70052521,196.71,196.5,68.28052521]
[1731006118781,2.5404,196.63,196.54,2.5415]
[1731006118976,31.70052521,196.67,196.5,68.28052521]
[1731006119184,31.70052521,196.67,196.54,31.70052521]
[1731006119483,31.70052521,196.67,196.59,2.5408]
[1731006119787,2.5397,196.69,196.6,2.5407]
[1731006119980,2.5401,196.66,196.5,68.28052521]
[1731006120185,31.70052521,196.67,196.5,68.28052521]
[1731006120382,31.70052521,196.67,196.56,2.5413]
[1731006120685,31.70052521,196.67,196.5,68.28052521]
[1731006120887,31.70052521,196.7,196.54,31.70052521]
[1731006121285,2.5396,196.69,196.54,31.70052521]
[1731006121676,31.70052521,196.7,196.54,31.70052521]
[1731006121877,31.70052521,196.63,196.5,68.28052521]
[1731006122187,31.70052521,196.63,196.51,2.5419]
[1731006122483,31.70052521,196.6,196.41,45.12737403]
[1731006122882,31.70052521,196.6,196.42,2.51554205]
[1731006123086,31.70052521,196.6,196.43,31.70052521]
[1731006123281,31.70052521,196.56,196.46,2.5425]
[1731006123476,31.70052521,196.56,196.43,31.70052521]
[1731006123887,31.70052521,196.53,196.46,2.5426]
[1731006124185,31.70052521,196.53,196.39,31.70052521]
[1731006124487,31.70052521,196.53,196.36,31.70052521]
[1731006124982,31.70052521,196.53,196.45,2.5426]
[1731006125483,31.70052521,196.56,196.39,31.70052521]
[1731006126487,31.70052521,196.59,196.51,2.5419]
[1731006127089,31.70052521,196.63,196.49,31.70052521]
[1731006127484,31.70052521,196.66,196.49,31.70052521]
[1731006127680,31.70052521,196.66,196.52,31.70052521]
[1731006127885,31.70052521,196.69,196.52,31.70052521]
[1731006128085,31.70052521,196.69,196.61,2.5406]
[1731006128485,31.70052521,196.65,196.45,2.54633149]
[1731006128786,31.70052521,196.62,196.47,31.70052521]
[1731006128996,31.70052521,196.65,196.5,31.70052521]
[1731006129190,31.70052521,196.65,196.57,2.541]
[1731006129395,31.70052521,196.69,196.53,31.70052521]
[1731006129888,31.70052521,196.72,196.56,31.70052521]
[1731006130282,31.70052521,196.75,196.59,31.70052521]
[1731006130683,36.62,196.88,196.64,31.68094359]
[1731006130893,2.5378,196.83,196.71,31.68094359]
[1731006131103,31.68094359,196.88,196.71,31.68094359]
[1731006131395,31.68094359,196.88,196.74,31.68094359]
[1731006131587,31.68094359,196.92,196.77,31.68094359]
[1731006131787,31.68094359,196.95,196.77,31.68094359]
[1731006132187,31.68094359,196.95,196.68,45.06573109]
[1731006132392,31.68094359,196.95,196.78,31.68094359]
[1731006132592,31.68094359,196.92,196.68,47.6700792]
[1731006132793,31.68094359,196.99,196.68,45.06573109]
[1731006132794,31.68094359,196.89,196.68,45.06573109]
[1731006132989,34.21894359,196.82,196.7,2.5394]
[1731006133195,31.68094359,196.79,196.68,45.06573109]
[1731006133400,31.68094359,196.79,196.6,31.68094359]
[1731006133697,31.68094359,196.79,196.63,31.68094359]
[1731006134388,31.68094359,196.79,196.68,2.5397]
[1731006134889,2.5388,196.76,196.65,2.5401]
[1731006135091,31.68094359,196.76,196.6,31.68094359]
[1731006136099,31.68094359,196.69,196.57,2.541]
[1731006136400,31.68094359,196.69,196.53,31.68094359]
[1731006136601,31.68094359,196.69,196.51,36.6]
[1731006136602,31.68094359,196.75,196.63,2.5403]
[1731006136797,31.68094359,196.72,196.56,31.68094359]
[1731006136993,31.68094359,196.69,196.56,31.68094359]
[1731006137304,2.5401,196.66,196.55,2.5414]
[1731006137800,31.68094359,196.74,196.62,2.5405]
[1731006138004,31.68094359,196.79,196.59,31.68094359]
[1731006138203,31.68094359,196.76,196.59,31.68094359]
[1731006138402,2.5389,196.75,196.65,2.54]
[1731006138604,31.68094359,196.76,196.59,31.68094359]
[1731006139600,31.68094359,196.76,196.62,31.68094359]
[1731006139807,2.5389,196.75,196.66,2.5399]
[1731006140104,31.68094359,196.76,196.59,31.68094359]
[1731006140705,31.68094359,196.82,196.65,31.68094359]
[1731006140900,31.68094359,196.86,196.73,2.5391]
[1731006141099,31.68094359,196.86,196.68,31.68094359]
[1731006141506,2.5376,196.85,196.74,2.5389]
[1731006142006,31.68094359,196.82,196.65,31.68094359]
[1731006142403,31.68094359,196.79,196.62,31.68094359]
[1731006142600,31.68094359,196.76,196.62,31.68094359]
[1731006142803,31.68094359,196.79,196.7,2.5394]
[1731006143305,31.68094359,196.83,196.67,31.68094359]
[1731006143901,31.68094359,196.86,196.71,31.68094359]
[1731006144097,31.68094359,196.86,196.77,2.5385]
[1731006144305,31.68094359,196.89,196.74,31.68094359]
[1731006144511,36.6,197.07,196.8,31.68094359]
[1731006144512,31.68094359,196.96,196.8,31.68094359]
[1731006145406,34.21704359,196.96,196.84,2.5376]
[1731006145613,34.21704359,196.96,196.8,31.68094359]
[1731006146112,31.68094359,196.96,196.8,31.68094359]
[1731006146608,34.21704359,196.96,196.8,31.68094359]
[1731006146998,2.5364,196.94,196.85,2.5375]
[1731006147203,31.68094359,196.96,196.8,31.68094359]
[1731006148313,31.68094359,196.96,196.76,31.68094359]
[1731006148512,31.68094359,196.92,196.76,31.68094359]
[1731006149512,31.68094359,196.92,196.81,2.538]
[1731006149710,31.68094359,196.92,196.76,31.68094359]
[1731006150209,2.537,196.89,196.79,2.5383]
[1731006150400,2.537,196.89,196.76,31.68094359]
[1731006150604,31.68094359,196.92,196.76,31.68094359]
[1731006150800,31.68094359,196.96,196.8,31.68094359]
[1731006151600,31.68094359,197.09,196.78,2.47947575]
[1731006151601,31.68094359,197.0,196.87,31.68094359]
[1731006151804,34.21654359,197.0,196.89,2.5369]
[1731006152008,31.68094359,196.96,196.7,36.6]
[1731006152207,31.68094359,196.93,196.78,31.68094359]
[1731006152513,31.68094359,196.93,196.75,31.68094359]
[1731006152814,31.68094359,196.9,196.68,81.64431221]
[1731006153015,31.68094359,196.9,196.8,2.5382]
[1731006153313,31.68094359,196.9,196.73,31.68094359]
[1731006154205,31.68094359,196.9,196.76,31.68094359]
[1731006154407,31.68094359,196.93,196.76,31.68094359]
[1731006154806,31.68094359,196.89,196.8,2.5381]
[1731006155006,31.68094359,196.89,196.72,31.68094359]
[1731006155420,31.68094359,196.89,196.8,2.5382]
[1731006156012,31.68094359,196.92,196.75,31.68094359]
[1731006156410,31.68094359,196.92,196.79,31.68094359]
[1731006157410,31.68094359,196.92,196.83,2.5377]
[1731006157715,31.68094359,196.92,196.79,31.68094359]
[1731006157910,31.68094359,196.92,196.84,2.5376]